[Event "Titled Tuesday Blitz May 23 Early 2023"]
[White "Novik, Maxim"]
[Black "Tatarinov, Dmitry"]
[WhiteFideId "4102924"]
[BlackFideId "24160067"]
[WhiteElo "2287"]
[BlackElo "2326"]
[Result "0-1"]
[Round "07"]
[TimeControl "180+2"]
[Date "2023.05.23"]
[WhiteClock "0:00:00"]
[BlackClock "0:00:50"]

1. d4 {[%clk 0:03:00]}  Nf6 {[%clk 0:02:52]} 2. c4 {[%clk 0:03:01]}  g6 {[%clk 0:02:52]} 3. Nc3 {[%clk 0:03:01]}  Bg7 {[%clk 0:02:53]} 4. e4 {[%clk 0:03:01]}  d6 {[%clk 0:02:53]} 5. Be2 {[%clk 0:03:02]}  O-O {[%clk 0:02:51]} 6. Nf3 {[%clk 0:03:02]}  Na6 {[%clk 0:02:49]} 7. O-O {[%clk 0:03:02]}  c5 {[%clk 0:02:49]} 8. Re1 {[%clk 0:02:46]}  cxd4 {[%clk 0:02:47]} 9. Nxd4 {[%clk 0:02:45]}  Nc5 {[%clk 0:02:46]} 10. Bf1 {[%clk 0:02:45]}  a5 {[%clk 0:02:40]} 11. h3 {[%clk 0:02:44]}  Bd7 {[%clk 0:02:38]} 12. f3 {[%clk 0:02:41]}  a4 {[%clk 0:02:35]} 13. Be3 {[%clk 0:02:39]}  Qa5 {[%clk 0:02:33]} 14. Qd2 {[%clk 0:02:39]}  Rfc8 {[%clk 0:02:33]} 15. Rab1 {[%clk 0:02:34]}  Qd8 {[%clk 0:02:30]} 16. Nd5 {[%clk 0:02:23]}  e6 {[%clk 0:02:21]} 17. Nc3 {[%clk 0:02:21]}  Be8 {[%clk 0:02:15]} 18. Rbd1 {[%clk 0:02:18]}  Qe7 {[%clk 0:02:12]} 19. Ndb5 {[%clk 0:02:16]}  Bxb5 {[%clk 0:02:07]} 20. Nxb5 {[%clk 0:02:14]}  Ne8 {[%clk 0:02:07]} 21. Bf4 {[%clk 0:02:09]}  Be5 {[%clk 0:02:04]} 22. Bxe5 {[%clk 0:01:49]}  dxe5 {[%clk 0:02:04]} 23. Qb4 {[%clk 0:01:49]}  Kf8 {[%clk 0:01:54]} 24. Rd2 {[%clk 0:01:42]}  Rd8 {[%clk 0:01:49]} 25. Red1 {[%clk 0:01:41]}  Rxd2 {[%clk 0:01:50]} 26. Rxd2 {[%clk 0:01:41]}  h5 {[%clk 0:01:50]} 27. Nd6 {[%clk 0:01:24]}  Na6 {[%clk 0:01:38]} 28. Qxb7 {[%clk 0:01:18]}  Qxb7 {[%clk 0:01:38]} 29. Nxb7 {[%clk 0:01:18]}  Rb8 {[%clk 0:01:36]} 30. c5 {[%clk 0:01:17]}  Nec7 {[%clk 0:01:28]} 31. Bxa6 {[%clk 0:01:11]}  Nxa6 {[%clk 0:01:28]} 32. c6 {[%clk 0:01:11]}  Rc8 {[%clk 0:01:27]} 33. Rd8+ {[%clk 0:01:00]}  Rxd8 {[%clk 0:01:27]} 34. Nxd8 {[%clk 0:00:58]}  Ke7 {[%clk 0:01:28]} 35. Nb7 {[%clk 0:00:59]}  Nb4 {[%clk 0:01:24]} 36. a3 {[%clk 0:00:43]}  Nd3 {[%clk 0:01:18]} 37. Kf1 {[%clk 0:00:39]}  Nxb2 {[%clk 0:01:17]} 38. Ke2 {[%clk 0:00:29]}  Nc4 {[%clk 0:01:17]} 39. Kd3 {[%clk 0:00:18]}  Nxa3 {[%clk 0:01:16]} 40. Kc3 {[%clk 0:00:18]}  Nb5+ {[%clk 0:01:16]} 41. Kb4 {[%clk 0:00:17]}  a3 {[%clk 0:01:16]} 42. Kxb5 {[%clk 0:00:11]}  a2 {[%clk 0:01:16]} 43. Nc5 {[%clk 0:00:12]}  a1=Q {[%clk 0:01:14]} 44. c7 {[%clk 0:00:11]}  Qa8 {[%clk 0:01:12]} 45. Kb6 {[%clk 0:00:11]}  Qc8 {[%clk 0:01:11]} 46. Kc6 {[%clk 0:00:11]}  h4 {[%clk 0:01:09]} 47. Nb7 {[%clk 0:00:09]}  Qd7+ {[%clk 0:01:07]} 48. Kb6 {[%clk 0:00:09]}  Qd4+ {[%clk 0:01:03]} 49. Nc5 {[%clk 0:00:07]}  Qd6+ {[%clk 0:00:59]} 50. Kb7 {[%clk 0:00:06]}  Qxc5 {[%clk 0:00:57]} 51. c8=Q {[%clk 0:00:05]}  Qb4+ {[%clk 0:00:51]} 52. Kc7 {[%clk 0:00:04]}  Qc3+ {[%clk 0:00:51]} 53. Kb7 {[%clk 0:00:04]}  Qb2+ {[%clk 0:00:51]} 54. Kc7 {[%clk 0:00:04]}  Qc2+ {[%clk 0:00:51]} 55. Kb7 {[%clk 0:00:05]}  Qxg2 {[%clk 0:00:49]} 56. Qc7+ {[%clk 0:00:04]}  Kf6 {[%clk 0:00:50]} 57. Qd8+ {[%clk 0:00:04]}  Kg7 {[%clk 0:00:50]} 58. Qxh4 {[%clk 0:00:04]}  Qxf3 {[%clk 0:00:51]} 59. Kc6 {[%clk 0:00:00]}  Qf4 {[%clk 0:00:50]} 0-1


[Site "https://www.chess.com"]

[Event "Titled Tuesday Blitz May 23 Early 2023"]
[White "Wagner, Dennis"]
[Black "Omelja, Artem"]
[WhiteFideId "24650684"]
[BlackFideId "14119846"]
[WhiteElo "2478"]
[BlackElo "2404"]
[Result "0-1"]
[Round "07"]
[TimeControl "180+2"]
[Date "2023.05.23"]
[WhiteClock "0:00:03"]
[BlackClock "0:00:05"]

1. e4 {[%clk 0:02:56]}  c5 {[%clk 0:02:57]} 2. Nf3 {[%clk 0:02:57]}  Nc6 {[%clk 0:02:56]} 3. Bb5 {[%clk 0:02:57]}  g6 {[%clk 0:02:56]} 4. Bxc6 {[%clk 0:02:56]}  bxc6 {[%clk 0:02:55]} 5. d4 {[%clk 0:02:55]}  Bg7 {[%clk 0:02:51]} 6. dxc5 {[%clk 0:02:52]}  Qa5+ {[%clk 0:02:51]} 7. Nbd2 {[%clk 0:02:51]}  Qxc5 {[%clk 0:02:39]} 8. O-O {[%clk 0:02:51]}  d6 {[%clk 0:02:39]} 9. Rb1 {[%clk 0:02:36]}  Nf6 {[%clk 0:02:33]} 10. b4 {[%clk 0:02:34]}  Qh5 {[%clk 0:02:32]} 11. c4 {[%clk 0:02:27]}  O-O {[%clk 0:02:30]} 12. Bb2 {[%clk 0:02:26]}  Rb8 {[%clk 0:02:22]} 13. Bc3 {[%clk 0:02:20]}  Bd7 {[%clk 0:02:01]} 14. Re1 {[%clk 0:02:18]}  Ng4 {[%clk 0:01:55]} 15. Bxg7 {[%clk 0:02:16]}  Kxg7 {[%clk 0:01:56]} 16. Qc2 {[%clk 0:01:41]}  Ne5 {[%clk 0:01:47]} 17. Qc3 {[%clk 0:01:40]}  f6 {[%clk 0:01:47]} 18. h3 {[%clk 0:01:31]}  Rfc8 {[%clk 0:01:27]} 19. a4 {[%clk 0:01:26]}  Be6 {[%clk 0:01:17]} 20. c5 {[%clk 0:01:23]}  Bf7 {[%clk 0:00:59]} 21. Nd4 {[%clk 0:01:15]}  a5 {[%clk 0:00:50]} 22. bxa5 {[%clk 0:01:01]}  dxc5 {[%clk 0:00:49]} 23. Nc2 {[%clk 0:00:49]}  c4 {[%clk 0:00:45]} 24. a6 {[%clk 0:00:42]}  Ra8 {[%clk 0:00:30]} 25. Rb6 {[%clk 0:00:38]}  Nd3 {[%clk 0:00:25]} 26. Reb1 {[%clk 0:00:37]}  Qc5 {[%clk 0:00:23]} 27. Qd4 {[%clk 0:00:36]}  Qxd4 {[%clk 0:00:19]} 28. Nxd4 {[%clk 0:00:37]}  c3 {[%clk 0:00:16]} 29. N2f3 {[%clk 0:00:21]}  e5 {[%clk 0:00:16]} 30. Nc2 {[%clk 0:00:20]}  Nc5 {[%clk 0:00:14]} 31. a5 {[%clk 0:00:13]}  Nxa6 {[%clk 0:00:13]} 32. Nfe1 {[%clk 0:00:09]}  Nc5 {[%clk 0:00:13]} 33. Ra1 {[%clk 0:00:10]}  Nb3 {[%clk 0:00:11]} 34. Ra3 {[%clk 0:00:08]}  Nxa5 {[%clk 0:00:09]} 35. Rxc3 {[%clk 0:00:08]}  Nc4 {[%clk 0:00:09]} 36. Rb7 {[%clk 0:00:09]}  Nd6 {[%clk 0:00:08]} 37. f3 {[%clk 0:00:07]}  Nxb7 {[%clk 0:00:08]} 38. Kh2 {[%clk 0:00:06]}  c5 {[%clk 0:00:08]} 39. Nd3 {[%clk 0:00:05]}  c4 {[%clk 0:00:08]} 40. Ndb4 {[%clk 0:00:06]}  Nd6 {[%clk 0:00:08]} 41. Nd5 {[%clk 0:00:06]}  Bxd5 {[%clk 0:00:07]} 42. exd5 {[%clk 0:00:07]}  Nb5 {[%clk 0:00:07]} 43. Re3 {[%clk 0:00:07]}  c3 {[%clk 0:00:07]} 44. Re4 {[%clk 0:00:08]}  Nd4 {[%clk 0:00:07]} 45. Ne3 {[%clk 0:00:05]}  c2 {[%clk 0:00:07]} 46. Nxc2 {[%clk 0:00:05]}  Rxc2 {[%clk 0:00:06]} 47. d6 {[%clk 0:00:05]}  Rd8 {[%clk 0:00:06]} 48. h4 {[%clk 0:00:06]}  Rxd6 {[%clk 0:00:06]} 49. Kh3 {[%clk 0:00:07]}  Ne6 {[%clk 0:00:05]} 50. g3 {[%clk 0:00:06]}  Rdd2 {[%clk 0:00:05]} 51. h5 {[%clk 0:00:03]}  gxh5 {[%clk 0:00:05]} 52. g4 {[%clk 0:00:02]}  Rh2+ {[%clk 0:00:04]} 53. Kg3 {[%clk 0:00:03]}  Rcg2# {[%clk 0:00:05]} 0-1


[Site "https://www.chess.com"]

[Event "Titled Tuesday Blitz May 23 Early 2023"]
[White "Ashraf, Artin"]
[Black "Mladek, Richard"]
[WhiteFideId "22514805"]
[BlackFideId "386588"]
[WhiteElo "2188"]
[BlackElo "2332"]
[Result "1-0"]
[Round "07"]
[TimeControl "180+2"]
[Date "2023.05.23"]
[WhiteClock "0:01:05"]
[BlackClock "0:00:00"]

1. d4 {[%clk 0:02:51]}  d5 {[%clk 0:02:57]} 2. c4 {[%clk 0:02:51]}  e6 {[%clk 0:02:57]} 3. Nc3 {[%clk 0:02:49]}  c5 {[%clk 0:02:57]} 4. e3 {[%clk 0:02:48]}  Nf6 {[%clk 0:02:53]} 5. Nf3 {[%clk 0:02:48]}  a6 {[%clk 0:02:51]} 6. a3 {[%clk 0:02:48]}  dxc4 {[%clk 0:02:51]} 7. Bxc4 {[%clk 0:02:46]}  b5 {[%clk 0:02:52]} 8. Bd3 {[%clk 0:02:41]}  Bb7 {[%clk 0:02:52]} 9. O-O {[%clk 0:02:39]}  c4 {[%clk 0:02:49]} 10. Bc2 {[%clk 0:02:39]}  Nbd7 {[%clk 0:02:38]} 11. e4 {[%clk 0:02:39]}  Qc7 {[%clk 0:02:36]} 12. d5 {[%clk 0:02:28]}  e5 {[%clk 0:02:27]} 13. Nh4 {[%clk 0:02:11]}  Bc5 {[%clk 0:02:06]} 14. Qf3 {[%clk 0:02:10]}  O-O-O {[%clk 0:01:58]} 15. b3 {[%clk 0:02:03]}  Bd4 {[%clk 0:01:44]} 16. Bd2 {[%clk 0:01:58]}  cxb3 {[%clk 0:01:39]} 17. Bxb3 {[%clk 0:01:58]}  Nc5 {[%clk 0:01:39]} 18. Rab1 {[%clk 0:01:56]}  Bxc3 {[%clk 0:01:21]} 19. Bxc3 {[%clk 0:01:57]}  Nfxe4 {[%clk 0:01:22]} 20. Rfc1 {[%clk 0:01:50]}  Kb8 {[%clk 0:01:06]} 21. Bb4 {[%clk 0:01:44]}  Qb6 {[%clk 0:00:58]} 22. Qe3 {[%clk 0:01:43]}  Rc8 {[%clk 0:00:43]} 23. f3 {[%clk 0:01:43]}  a5 {[%clk 0:00:44]} 24. Be1 {[%clk 0:01:36]}  Nf6 {[%clk 0:00:20]} 25. Qxe5+ {[%clk 0:01:35]}  Ka8 {[%clk 0:00:18]} 26. Bf2 {[%clk 0:01:34]}  Nfd7 {[%clk 0:00:19]} 27. Qxg7 {[%clk 0:01:32]}  Rhe8 {[%clk 0:00:17]} 28. Bd1 {[%clk 0:01:25]}  Qd6 {[%clk 0:00:16]} 29. Qd4 {[%clk 0:01:22]}  Qe5 {[%clk 0:00:11]} 30. Qd2 {[%clk 0:01:20]}  Qxd5 {[%clk 0:00:04]} 31. Qxa5+ {[%clk 0:01:20]}  Kb8 {[%clk 0:00:05]} 32. Rxb5 {[%clk 0:01:15]}  Re5 {[%clk 0:00:03]} 33. Bb3 {[%clk 0:01:09]}  Qd3 {[%clk 0:00:02]} 34. Bc4 {[%clk 0:01:07]}  Qd2 {[%clk 0:00:00]} 35. Qxd2 {[%clk 0:01:05]} 1-0


[Site "https://www.chess.com"]

[Event "Titled Tuesday Blitz May 23 Early 2023"]
[White "Dimitrov, Atanas"]
[Black "Manukyan, Artyom"]
[WhiteFideId "2901315"]
[BlackFideId "13305786"]
[WhiteElo "2710"]
[BlackElo "2078"]
[Result "1/2-1/2"]
[Round "07"]
[TimeControl "180+2"]
[Date "2023.05.23"]
[WhiteClock "0:00:38"]
[BlackClock "0:01:28"]

1. Nf3 {[%clk 0:03:00]}  d5 {[%clk 0:02:58]} 2. b3 {[%clk 0:03:00]}  Bf5 {[%clk 0:02:57]} 3. Bb2 {[%clk 0:03:01]}  e6 {[%clk 0:02:57]} 4. e3 {[%clk 0:03:00]}  h6 {[%clk 0:02:58]} 5. c4 {[%clk 0:03:00]}  Nf6 {[%clk 0:02:58]} 6. Nc3 {[%clk 0:03:01]}  c6 {[%clk 0:02:58]} 7. Be2 {[%clk 0:03:01]}  Be7 {[%clk 0:02:59]} 8. O-O {[%clk 0:03:02]}  O-O {[%clk 0:02:59]} 9. Rc1 {[%clk 0:03:02]}  Bh7 {[%clk 0:02:59]} 10. d4 {[%clk 0:03:00]}  a5 {[%clk 0:02:59]} 11. a3 {[%clk 0:02:59]}  Nbd7 {[%clk 0:02:58]} 12. Nd2 {[%clk 0:02:59]}  Re8 {[%clk 0:02:50]} 13. Re1 {[%clk 0:02:58]}  Bf8 {[%clk 0:02:45]} 14. Nf1 {[%clk 0:02:49]}  e5 {[%clk 0:02:43]} 15. dxe5 {[%clk 0:02:45]}  Nxe5 {[%clk 0:02:44]} 16. cxd5 {[%clk 0:02:46]}  Nxd5 {[%clk 0:02:44]} 17. Nxd5 {[%clk 0:02:44]}  Qxd5 {[%clk 0:02:44]} 18. Qxd5 {[%clk 0:02:43]}  cxd5 {[%clk 0:02:45]} 19. Red1 {[%clk 0:02:43]}  Rad8 {[%clk 0:02:37]} 20. Rc7 {[%clk 0:02:31]}  b6 {[%clk 0:02:33]} 21. h3 {[%clk 0:02:24]}  Re6 {[%clk 0:02:27]} 22. Ng3 {[%clk 0:02:16]}  Bd6 {[%clk 0:02:24]} 23. Rcc1 {[%clk 0:02:13]}  Bc5 {[%clk 0:02:23]} 24. Nh5 {[%clk 0:02:10]}  g5 {[%clk 0:02:10]} 25. Bxe5 {[%clk 0:01:08]}  Rxe5 {[%clk 0:02:11]} 26. Nf6+ {[%clk 0:01:08]}  Kg7 {[%clk 0:02:10]} 27. Nxh7 {[%clk 0:01:06]}  Kxh7 {[%clk 0:02:11]} 28. Bd3+ {[%clk 0:01:05]}  Kg7 {[%clk 0:02:10]} 29. a4 {[%clk 0:01:04]}  d4 {[%clk 0:02:10]} 30. exd4 {[%clk 0:01:03]}  Rxd4 {[%clk 0:02:11]} 31. Bc4 {[%clk 0:01:01]}  h5 {[%clk 0:02:02]} 32. Rxd4 {[%clk 0:01:00]}  Bxd4 {[%clk 0:02:03]} 33. Rd1 {[%clk 0:01:01]}  Bc5 {[%clk 0:01:58]} 34. g3 {[%clk 0:00:59]}  Kg6 {[%clk 0:01:48]} 35. Kg2 {[%clk 0:00:59]}  f5 {[%clk 0:01:46]} 36. Rd7 {[%clk 0:00:57]}  h4 {[%clk 0:01:42]} 37. gxh4 {[%clk 0:00:55]}  gxh4 {[%clk 0:01:43]} 38. Kf3 {[%clk 0:00:53]}  Re1 {[%clk 0:01:39]} 39. Rd8 {[%clk 0:00:48]}  Rh1 {[%clk 0:01:33]} 40. Kg2 {[%clk 0:00:46]}  Rc1 {[%clk 0:01:28]} 41. Rd2 {[%clk 0:00:38]} 1/2-1/2


[Site "https://www.chess.com"]

[Event "Titled Tuesday Blitz May 23 Early 2023"]
[White "Bagwe Gaurang"]
[Black "Martinez Ramirez, Lennis"]
[WhiteFideId "45039895"]
[BlackFideId "3509079"]
[WhiteElo "1847"]
[BlackElo "2410"]
[Result "0-1"]
[Round "07"]
[TimeControl "180+2"]
[Date "2023.05.23"]
[WhiteClock "0:00:04"]
[BlackClock "0:00:10"]

1. e4 {[%clk 0:03:00]}  c5 {[%clk 0:02:59]} 2. Nf3 {[%clk 0:02:59]}  Nc6 {[%clk 0:03:00]} 3. d4 {[%clk 0:02:59]}  cxd4 {[%clk 0:03:01]} 4. Nxd4 {[%clk 0:02:59]}  Nf6 {[%clk 0:03:01]} 5. Nc3 {[%clk 0:02:59]}  e5 {[%clk 0:03:02]} 6. Ndb5 {[%clk 0:02:59]}  d6 {[%clk 0:03:02]} 7. Nd5 {[%clk 0:02:57]}  Nxd5 {[%clk 0:03:02]} 8. exd5 {[%clk 0:02:57]}  Nb8 {[%clk 0:03:02]} 9. c4 {[%clk 0:02:57]}  Be7 {[%clk 0:03:02]} 10. Be2 {[%clk 0:02:56]}  O-O {[%clk 0:03:02]} 11. O-O {[%clk 0:02:57]}  Nd7 {[%clk 0:03:00]} 12. Be3 {[%clk 0:02:53]}  f5 {[%clk 0:02:54]} 13. f3 {[%clk 0:02:52]}  a6 {[%clk 0:02:48]} 14. Nc3 {[%clk 0:02:52]}  Bg5 {[%clk 0:02:46]} 15. Bf2 {[%clk 0:02:52]}  Nf6 {[%clk 0:02:42]} 16. b4 {[%clk 0:02:50]}  Qe8 {[%clk 0:01:51]} 17. c5 {[%clk 0:02:42]}  Qg6 {[%clk 0:01:44]} 18. cxd6 {[%clk 0:02:24]}  e4 {[%clk 0:01:09]} 19. fxe4 {[%clk 0:02:19]}  fxe4 {[%clk 0:01:09]} 20. Na4 {[%clk 0:02:06]}  Bf5 {[%clk 0:00:56]} 21. Bg3 {[%clk 0:02:00]}  h5 {[%clk 0:00:48]} 22. Qd4 {[%clk 0:01:15]}  h4 {[%clk 0:00:41]} 23. Be5 {[%clk 0:01:15]}  Bh3 {[%clk 0:00:36]} 24. Rf2 {[%clk 0:00:37]}  e3 {[%clk 0:00:35]} 25. Rf3 {[%clk 0:00:38]}  Bg4 {[%clk 0:00:22]} 26. Rxe3 {[%clk 0:00:38]}  Bxe3+ {[%clk 0:00:20]} 27. Qxe3 {[%clk 0:00:37]}  Rae8 {[%clk 0:00:19]} 28. Re1 {[%clk 0:00:34]}  Nd7 {[%clk 0:00:19]} 29. Bd3 {[%clk 0:00:30]}  Qh5 {[%clk 0:00:17]} 30. Qd4 {[%clk 0:00:08]}  Rxe5 {[%clk 0:00:17]} 31. Rc1 {[%clk 0:00:07]}  h3 {[%clk 0:00:13]} 32. Nc5 {[%clk 0:00:04]}  hxg2 {[%clk 0:00:12]} 33. Nxd7 {[%clk 0:00:04]}  Bxd7 {[%clk 0:00:12]} 34. Rc7 {[%clk 0:00:04]}  Rf1+ {[%clk 0:00:11]} 35. Bxf1 {[%clk 0:00:03]}  gxf1=Q+ {[%clk 0:00:10]} 36. Kxf1 {[%clk 0:00:04]}  Qf3+ {[%clk 0:00:09]} 37. Qf2 {[%clk 0:00:04]}  Bh3+ {[%clk 0:00:09]} 38. Kg1 {[%clk 0:00:04]}  Re1+ {[%clk 0:00:10]} 39. Qxe1 {[%clk 0:00:04]}  Qg2# {[%clk 0:00:10]} 0-1


[Site "https://www.chess.com"]

[Event "Titled Tuesday Blitz May 23 Early 2023"]
[White "Senft, Sean"]
[Black "Zhu, Jiner"]
[WhiteFideId "2044960"]
[BlackFideId "8608059"]
[WhiteElo "1989"]
[BlackElo "2384"]
[Result "0-1"]
[Round "07"]
[TimeControl "180+2"]
[Date "2023.05.23"]
[WhiteClock "0:00:02"]
[BlackClock "0:00:03"]

1. d4 {[%clk 0:02:59]}  Nf6 {[%clk 0:02:57]} 2. c4 {[%clk 0:02:59]}  g6 {[%clk 0:02:58]} 3. Nc3 {[%clk 0:02:59]}  Bg7 {[%clk 0:02:58]} 4. e4 {[%clk 0:03:00]}  d6 {[%clk 0:02:59]} 5. f4 {[%clk 0:03:00]}  c5 {[%clk 0:02:56]} 6. d5 {[%clk 0:03:01]}  O-O {[%clk 0:02:55]} 7. Nf3 {[%clk 0:03:01]}  e6 {[%clk 0:02:55]} 8. Be2 {[%clk 0:03:02]}  exd5 {[%clk 0:02:55]} 9. exd5 {[%clk 0:03:02]}  Re8 {[%clk 0:02:53]} 10. O-O {[%clk 0:03:03]}  Ne4 {[%clk 0:02:39]} 11. Nxe4 {[%clk 0:03:03]}  Rxe4 {[%clk 0:02:40]} 12. Bd3 {[%clk 0:03:03]}  Re8 {[%clk 0:02:41]} 13. f5 {[%clk 0:03:04]}  Nd7 {[%clk 0:02:25]} 14. Bg5 {[%clk 0:03:04]}  Qb6 {[%clk 0:02:17]} 15. Rb1 {[%clk 0:02:46]}  Qa5 {[%clk 0:02:08]} 16. a3 {[%clk 0:02:38]}  b5 {[%clk 0:02:07]} 17. cxb5 {[%clk 0:02:32]}  Bb7 {[%clk 0:02:01]} 18. Bc4 {[%clk 0:02:20]}  Ne5 {[%clk 0:01:54]} 19. Nxe5 {[%clk 0:02:02]}  Bxe5 {[%clk 0:01:55]} 20. Qf3 {[%clk 0:01:56]}  Qc7 {[%clk 0:01:44]} 21. Qh3 {[%clk 0:01:35]}  Bd4+ {[%clk 0:01:40]} 22. Kh1 {[%clk 0:01:35]}  Re5 {[%clk 0:01:13]} 23. Bf6 {[%clk 0:01:13]}  Re4 {[%clk 0:00:52]} 24. fxg6 {[%clk 0:01:01]}  fxg6 {[%clk 0:00:51]} 25. Bxd4 {[%clk 0:00:50]}  cxd4 {[%clk 0:00:52]} 26. b3 {[%clk 0:00:43]}  Rae8 {[%clk 0:00:50]} 27. Rbd1 {[%clk 0:00:24]}  Qe7 {[%clk 0:00:47]} 28. Qf3 {[%clk 0:00:21]}  Bc8 {[%clk 0:00:41]} 29. h3 {[%clk 0:00:19]}  Re3 {[%clk 0:00:37]} 30. Qf4 {[%clk 0:00:18]}  Re4 {[%clk 0:00:33]} 31. Qf2 {[%clk 0:00:16]}  Qg7 {[%clk 0:00:27]} 32. a4 {[%clk 0:00:13]}  Re3 {[%clk 0:00:22]} 33. a5 {[%clk 0:00:12]}  Bxh3 {[%clk 0:00:11]} 34. gxh3 {[%clk 0:00:07]}  Rxh3+ {[%clk 0:00:11]} 35. Kg2 {[%clk 0:00:07]}  Rh5 {[%clk 0:00:06]} 36. Rd3 {[%clk 0:00:05]}  Rf5 {[%clk 0:00:03]} 37. Rf3 {[%clk 0:00:05]}  Rfe5 {[%clk 0:00:02]} 38. Rf7 {[%clk 0:00:05]}  Qh6 {[%clk 0:00:03]} 39. Qg3 {[%clk 0:00:02]}  Rg5 {[%clk 0:00:03]} 40. Rf8+ {[%clk 0:00:02]}  Rxf8 {[%clk 0:00:02]} 41. Rxf8+ {[%clk 0:00:03]}  Kxf8 {[%clk 0:00:03]} 42. Qxg5 {[%clk 0:00:02]}  Qxg5+ {[%clk 0:00:03]} 0-1


[Site "https://www.chess.com"]

[Event "Titled Tuesday Blitz May 23 Early 2023"]
[White "Tsyhanchuk, Stanislav"]
[Black "Domingo Nunez, Ruben"]
[WhiteFideId "13505130"]
[BlackFideId "22245570"]
[WhiteElo "2173"]
[BlackElo "2404"]
[Result "0-1"]
[Round "07"]
[TimeControl "180+2"]
[Date "2023.05.23"]
[WhiteClock "0:00:00"]
[BlackClock "0:00:20"]

1. c4 {[%clk 0:03:00]}  g6 {[%clk 0:02:59]} 2. Nc3 {[%clk 0:03:01]}  Bg7 {[%clk 0:03:00]} 3. e4 {[%clk 0:03:01]}  d6 {[%clk 0:03:01]} 4. d4 {[%clk 0:03:01]}  Nd7 {[%clk 0:03:00]} 5. f4 {[%clk 0:03:00]}  e5 {[%clk 0:03:01]} 6. dxe5 {[%clk 0:02:57]}  dxe5 {[%clk 0:03:01]} 7. fxe5 {[%clk 0:02:57]}  Nxe5 {[%clk 0:02:25]} 8. Qxd8+ {[%clk 0:02:58]}  Kxd8 {[%clk 0:02:26]} 9. Bg5+ {[%clk 0:02:43]}  Bf6 {[%clk 0:02:16]} 10. O-O-O+ {[%clk 0:02:41]}  Bd7 {[%clk 0:02:13]} 11. Bf4 {[%clk 0:02:38]}  g5 {[%clk 0:01:36]} 12. Bg3 {[%clk 0:02:24]}  Ne7 {[%clk 0:01:32]} 13. Nf3 {[%clk 0:02:21]}  N7g6 {[%clk 0:01:33]} 14. Nd5 {[%clk 0:02:20]}  Bg7 {[%clk 0:01:28]} 15. h4 {[%clk 0:02:14]}  c6 {[%clk 0:01:20]} 16. Ne3 {[%clk 0:02:03]}  gxh4 {[%clk 0:01:11]} 17. Nxh4 {[%clk 0:01:59]}  Bh6 {[%clk 0:01:10]} 18. Nf5 {[%clk 0:01:49]}  Bf4 {[%clk 0:01:05]} 19. Bxf4 {[%clk 0:01:39]}  Nxf4 {[%clk 0:01:06]} 20. g3 {[%clk 0:01:38]}  Ne6 {[%clk 0:01:04]} 21. Nd6 {[%clk 0:01:33]}  Kc7 {[%clk 0:01:02]} 22. Nef5 {[%clk 0:01:27]}  Ng5 {[%clk 0:00:53]} 23. c5 {[%clk 0:01:08]}  Nxe4 {[%clk 0:00:50]} 24. b4 {[%clk 0:01:03]}  a5 {[%clk 0:00:48]} 25. Nxe4 {[%clk 0:00:45]}  Bxf5 {[%clk 0:00:47]} 26. Nd6 {[%clk 0:00:45]}  Be6 {[%clk 0:00:47]} 27. b5 {[%clk 0:00:43]}  cxb5 {[%clk 0:00:43]} 28. Nxb5+ {[%clk 0:00:35]}  Kb8 {[%clk 0:00:28]} 29. Nd6 {[%clk 0:00:20]}  a4 {[%clk 0:00:26]} 30. a3 {[%clk 0:00:18]}  Ra5 {[%clk 0:00:27]} 31. Ne4 {[%clk 0:00:14]}  Ng4 {[%clk 0:00:27]} 32. Kb2 {[%clk 0:00:11]}  Bf5 {[%clk 0:00:25]} 33. Bd3 {[%clk 0:00:09]}  Bxe4 {[%clk 0:00:25]} 34. Bxe4 {[%clk 0:00:10]}  Nf2 {[%clk 0:00:22]} 35. Rd5 {[%clk 0:00:05]}  Nxe4 {[%clk 0:00:22]} 36. Rh6 {[%clk 0:00:03]}  Rxc5 {[%clk 0:00:20]} 37. Rd4 {[%clk 0:00:03]}  Rb5+ {[%clk 0:00:20]} 38. Kc2 {[%clk 0:00:02]}  Rc8+ {[%clk 0:00:19]} 39. Kd3 {[%clk 0:00:02]}  f5 {[%clk 0:00:20]} 40. Rf6 {[%clk 0:00:00]}  Rc3+ {[%clk 0:00:20]} 0-1


[Site "https://www.chess.com"]